Cogmind - Beta 11.1 @@@ ROGUE MODE // 2022.05.26 @ 23:42:48 Player: kway_side Result: Destroyed by DAS Turret with DAS Cannon Performance ------------- Evolutions (1) 500 Regions Visited (4) 800 Robots Destroyed (66) 330 Value Destroyed (1516) 1516 Prototype IDs (27) 540 Alien Tech Used (0) 0 Bonus (318) 318 TOTAL SCORE: 4004 Bonus ------- High Alert Combat Kills 18 Aligned with FarCom 300 Cogmind --------- Core Integrity 0/400 Matter 266/300 Energy 99/100 System Corruption 2% Temperature Cool (0) Movement Core (1350) Ox26 Location -9/Exiles Parts ------- > --- POWER (1) -------- (None) > --- PROPULSION (2) --- (None) > --- UTILITY (3) ------ Huge Storage Unit > --- WEAPON (3) ------- (None) > --- INVENTORY (25) --- Improved Ion Engine Light Treads Light Treads Light Treads Improved Hover Unit Improved Flight Unit Improved Flight Unit Cooling System High-capacity Storage Unit Advanced Visual Processing Unit Advanced Visual Processing Unit Targeting Computer Hardened Light Armor Plating Hardened Light Armor Plating Hacking Suite Heavy Assault Rifle Heavy Assault Rifle Heavy Assault Rifle Heavy Assault Rifle Autogun EMP Blaster Grenade Launcher Plasma Cutter Heavy Hammer Longsword +1 Peak State ------------ > --- POWER ------------ Improved Ion Engine > --- PROPULSION ------- Improved Treads Improved Treads > --- UTILITY ---------- Huge Storage Unit Improved Targeting Computer Medium Armor Plating > --- WEAPON ----------- Enhanced Autogun Enhanced Autogun Longsword +1 > --- INVENTORY -------- Improved Ion Engine Light Treads Light Treads Light Treads Improved Treads Improved Hover Unit Improved Flight Unit Improved Flight Unit Cooling System High-capacity Storage Unit Advanced Visual Processing Unit Advanced Visual Processing Unit Targeting Computer Hardened Light Armor Plating Hardened Light Armor Plating Hacking Suite Heavy Assault Rifle Heavy Assault Rifle Heavy Assault Rifle Heavy Assault Rifle Autogun EMP Blaster Grenade Launcher Plasma Cutter Heavy Hammer [Rating: 31] Favorites ----------- Power Improved Ion Engine Engine Improved Ion Engine Power Core Light Nuclear Core Propulsion Improved Treads Treads Improved Treads Leg Aluminum Leg Flight Unit Improved Flight Unit Utility Medium Armor Plating Device Structural Scanner Storage Huge Storage Unit Processor Improved Targeting Computer Protection Medium Armor Plating Weapon Enhanced Autogun Energy Gun Small Laser Energy Cannon Beam Cannon Ballistic Gun Enhanced Autogun Launcher Grenade Launcher Slashing Weapon Longsword +1 Build | -11 -10 -9 -9 -9 ------- Run | Scr Mat Mat Min Exi Slots Evolved 2 | . . 2 . . Power . | . . . . . Propulsion . | . . . . . Utility 1 | . . 1 . . Weapon 1 | . . 1 . . Parts Attached 50 | . 14 33 . 3 Power 4 | . . 4 . . Engine 3 | . . 3 . . Core 1 | . . 1 . . Reactor . | . . . . . Propulsion 10 | . 5 5 . . Treads 9 | . 5 4 . . Leg . | . . . . . Wheel . | . . . . . Hover . | . . . . . Flight 1 | . . 1 . . Utility 12 | . 3 9 . . Device 1 | . . 1 . . Storage 3 | . 1 2 . . Processor 2 | . . 2 . . Hackware . | . . . . . Protection 6 | . 2 4 . . Artifact . | . . . . . Weapon 24 | . 6 15 . 3 Energy Gun 1 | . . 1 . . Energy Cannon 1 | . 1 . . . Ballistic Gun 16 | . 3 11 . 2 Ballistic Cannon . | . . . . . Launcher 5 | . 2 3 . . Special Weapon . | . . . . . Impact Weapon . | . . . . . Slashing Weapon 1 | . . . . 1 Piercing Weapon . | . . . . . Special Melee Weapon . | . . . . . Unidentified Prototypes 2 | . . 2 . . Parts Lost 7 | . 1 1 . 5 Power 1 | . . . . 1 Propulsion 2 | . . . . 2 Utility 4 | . 1 1 . 2 Weapon . | . . . . . Highest Loss Streak 5 | . 1 1 . 5 To Critical Strikes 1 | . . . . 1 Average Slot Usage (%) 98 | . 97 99 100 89 Engine 10 | . 14 9 11 10 Core 1 | . . 1 . . Treads 22 | . 25 21 22 21 Storage 11 | . 14 11 11 11 Processor 9 | . . 11 11 11 Protection 10 | . 12 10 11 10 Energy Gun 1 | . 8 . . . Ballistic Gun 28 | . 14 31 33 20 Naked Turns . | . . . . . Heaviest Build 103 | 13 36 103 103 103 Greatest Support 46 | 20 46 46 46 46 Greatest Overweight (x) 26 | . . 4 2 26 Average Overweight (x) 1 | . . 1 2 2 Largest Inventory Capacity 25 | 8 15 25 25 25 Average Capacity 21 | 8 12 22 25 25 Most Carried 25 | 6 15 25 25 25 Average Carried 20 | 6 11 22 25 24 Final Capacity 25 | 8 15 25 25 25 Final Carried 25 | 6 15 25 25 25 Class Distribution -------------------- 71% | Gunner 24% | Mutant Dominant Class ---------------- Mutant | -10/Materials Gunner | -9/Materials Gunner | -9/Mines Gunner | -9/Exiles Resources | -11 -10 -9 -9 -9 ----------- Run | Scr Mat Mat Min Exi Matter Collected 1632 | 200 152 1280 . . Remotely . | . . . . . Salvage Created 2389 | . 464 1925 . . Parts 156 | . 35 121 . . Haulers Intercepted 8 | . 2 6 . . Recyclers Shooed 11 | . 4 7 . . Parts Field Recycled . | . . . . . Retrieved Matter . | . . . . . Parts Self-Destructed . | . . . . . Prevented . | . . . . . Kills | -11 -10 -9 -9 -9 ------- Run | Scr Mat Mat Min Exi Combat Hostiles Destroyed 43 | . 12 31 . . Guns 30 | . 6 24 . . Cannons 3 | . 3 . . . AOE 10 | . 3 7 . . Classes Destroyed 8 | . 5 3 . . Builder 2 | . . 2 . . Hauler 8 | . 2 6 . . Recycler 5 | . 2 3 . . Operator 4 | . 1 3 . . Watcher 4 | . . 4 . . Swarmer 13 | . 9 4 . . Grunt 20 | . 3 17 . . Sentry 10 | . . 10 . . Best Kill Streak 7 | . 6 7 . . Combat Bots Only 5 | . 4 5 . . Max Kills in Single Turn 5 | . 5 4 . . Gunslinging 1 | . 1 . . . Exploded 3 | . 3 3 . . Melee . | . . . . . Uniques/NPCs Destroyed . | . . . . . Combat | -11 -10 -9 -9 -9 -------- Run | Scr Mat Mat Min Exi Damage Taken 2484 | . 448 929 . 1107 Core 453 | . 49 97 . 307 Absorbed by Shields . | . . . . . Regen/Repaired (Parts) 275 | . 102 173 . . Core Remaining (%) 90 | 100 80 . . . Volleys Fired 140 | . 51 89 . . Largest 3 | . 2 3 . . Hottest 83 | . 80 83 . . Shots Fired 327 | . 96 230 . 1 Gun 305 | . 80 224 . 1 Cannon 14 | . 14 . . . Launcher 8 | . 2 6 . . Special . | . . . . . Kinetic 270 | . 58 211 . 1 Thermal 39 | . 26 13 . . Explosive 5 | . 2 3 . . Electromagnetic 13 | . 10 3 . . Robot Hit Streak 12 | . 8 12 . . Robot Miss Streak 4 | . 4 3 . 1 Penetration Max . | . . . . . Secondary Targets 3 | . 1 2 . . Max Gunslinging Chain 1 | . 1 1 . . Shots Hit Robots 208 | . 58 150 . . Core Hits 99 | . 26 73 . . Critical Kills . | . . . . . Critical Parts Destroyed 1 | . 1 . . . Critical Strikes 1 | . 1 . . . Destroy 1 | . 1 . . . Melee Attacks . | . . . . . Impact . | . . . . . Slashing . | . . . . . Piercing . | . . . . . Sneak Attacks . | . . . . . Combat Hostiles . | . . . . . Follow-up Attacks . | . . . . . Damage Inflicted 3790 | . 831 2952 7 . Guns 2797 | . 455 2342 . . Cannons 123 | . 123 . . . Explosions 809 | . 245 564 . . Melee . | . . . . . Ramming 61 | . 8 46 7 . Kinetic 2543 | . 315 2228 . . Thermal 511 | . 208 303 . . Explosive 380 | . 245 135 . . Electromagnetic 295 | . 55 240 . . Impact . | . . . . . Slashing . | . . . . . Piercing . | . . . . . Highest Corruption 2 | . . 2 2 2 Average Corruption 2 | . . 2 2 2 Corruption Purged . | . . . . . Corruption Blocked . | . . . . . Effects 83 | . . 60 8 15 Message Errors 24 | . . 16 3 5 Matter Fused 23 | . . 20 2 1 Heat Flow Errors 10 | . . 7 1 2 Energy Discharges 7 | . . 4 1 2 Parts Rejected 2 | . . 1 . 1 Data Loss (minor) 6 | . . 5 . 1 Data Loss (major) 7 | . . 5 1 1 Misfires 3 | . . 2 . 1 Alerts 1 | . . . . 1 Overload Shots . | . . . . . Overflow Damage 6 | . . 6 . . Projectiles . | . . . . . Explosions 6 | . . 6 . . Melee . | . . . . . Knockbacks . | . . . . . Impact . | . . . . . Kinetic . | . . . . . Secondary . | . . . . . Self-Inflicted Damage 53 | . 26 27 . . Shots 2 | . 1 1 . . Rammed 12 | . 3 8 1 . Targets Rammed 13 | . 3 9 1 . Kicked . | . . . . . Crushed 1 | . . 1 . . Highest Temperature 307 | . 307 275 87 268 Average Temperature 65 | . 85 54 50 103 Received Heat Transfer 483 | . 72 351 . 60 Siege Activations . | . . . . . Robots Corrupted . | . . . . . Combat Hostiles . | . . . . . Parts Fried 1 | . . 1 . . Impact Corruptions . | . . . . . Robots Melted . | . . . . . Combat Hostiles . | . . . . . Parts Melted . | . . . . . Heat Transferred 859 | . 459 400 . . Parts Sabotaged . | . . . . . Parts Stolen . | . . . . . Parts Stripped . | . . . . . Power Chain Reactions 3 | . . 3 . . Missiles Intercepted . | . . . . . Alert | -11 -10 -9 -9 -9 ------- Run | Scr Mat Mat Min Exi Peak Influence 429 | . 248 429 120 . Initial 120 | . . 16 120 . Average 208 | . 59 254 94 . Maximum Alert Level 2 | . 1 2 . . Low Security (%) 39 | 100 95 20 100 . Level 1 57 | . 4 75 . . Level 2 2 | . . 3 . . Level 3 . | . . . . . Level 4 . | . . . . . Level 5 . | . . . . . High Security . | . . . . . Max Security . | . . . . . Squads Dispatched 6 | . 2 4 . . Investigation 2 | . 2 . . . Extermination . | . . . . . Reinforcement 4 | . . 4 . . Assault . | . . . . . Garrison . | . . . . . Intercept . | . . . . . Searches Triggered . | . . . . . Construction Impeded 1 | . . 1 . . Haulers Reinforced . | . . . . . Active Scanning Responses . | . . . . . Cargo Convoy Interrupts . | . . . . . Stealth | -11 -10 -9 -9 -9 --------- Run | Scr Mat Mat Min Exi Distress Signals 5 | . 3 2 . . Communications Jammed . | . . . . . Distress Signals . | . . . . . Times Spotted 79 | . 25 50 . 4 Peak Tracking Total 10 | . 5 7 . 10 Tactical Retreats 3 | . 1 1 . 1 Traps | -11 -10 -9 -9 -9 ------- Run | Scr Mat Mat Min Exi Traps Triggered 2 | . 1 1 . . Indirectly . | . . . . . Trap Hack Attempts . | . . . . . Triggered . | . . . . . Disarmed . | . . . . . Reprogrammed . | . . . . . Reused . | . . . . . Traps Extracted . | . . . . . Installed . | . . . . . Triggered . | . . . . . Machines | -11 -10 -9 -9 -9 ---------- Run | Scr Mat Mat Min Exi Machines Disabled 2 | . 2 . . . Max in Single Turn 1 | . 1 . . . Machines Sabotaged . | . . . . . Garrisons Compromised . | . . . . . Overloaded Fab Kills . | . . . . . Hacking | -11 -10 -9 -9 -9 --------- Run | Scr Mat Mat Min Exi Machines Accessed 22 | . 9 12 . 1 Terminals 16 | . 7 9 . . Fabricators . | . . . . . Repair Stations 2 | . 1 1 . . Recycling Units 2 | . 1 1 . . Scanalyzers 1 | . . 1 . . Garrison Access . | . . . . . Total Hacks 68 | . 28 39 . 1 Successful 39 | . 16 22 . 1 Failed 28 | . 11 17 . . Catastrophic 2 | . . 2 . . Database Lockouts 1 | . 1 . . . Manual 29 | . 13 15 . 1 Terminals 51 | . 23 28 . . Fabricators . | . . . . . Repair Stations 10 | . 4 6 . . Recycling Units 2 | . 1 1 . . Scanalyzers 4 | . . 4 . . Garrison Access . | . . . . . Terminal Hacks 20 | . 10 9 . 1 Robot Analysis 2 | . 2 . . . Prototype ID Bank 1 | . 1 . . . Level Access Points 1 | . . 1 . . Alert Level 4 | . 2 2 . . Unreport Threat 4 | . 2 2 . . Hauler Manifests 2 | . 1 1 . . Registered Components 1 | . . 1 . . Zone Layout 4 | . 2 2 . . EX-Prototype ID Bank 1 | . . . . 1 Fabricator Hacks . | . . . . . Repair Station Hacks 10 | . 4 6 . . Scan Component 5 | . 2 3 . . Repair 5 | . 2 3 . . Recycling Unit Hacks 1 | . . 1 . . Report Inventory 1 | . . 1 . . Scanalyzer 4 | . . 4 . . Insert Component 2 | . . 2 . . Analyze 2 | . . 2 . . Garrison Access Hacks . | . . . . . Unauthorized Hacks 4 | . 2 2 . . Terminals 3 | . 1 2 . . Botnet 2 | . 1 1 . . Operators 1 | . . 1 . . Fabricators . | . . . . . Repair Stations . | . . . . . Recycling Units 1 | . 1 . . . Tunnel 1 | . 1 . . . Scanalyzers . | . . . . . Garrison Access . | . . . . . Data Cores Recovered 1 | . 1 . . . Used . | . . . . . Hacking Detections 18 | . 8 10 . . Full Trace Events 1 | . 1 . . . Feedback Events . | . . . . . Feedback Blocked . | . . . . . Robot Schematics Acquired . | . . . . . Robots Built . | . . . . . Authchips . | . . . . . Time . | . . . . . Total Robot Build Rating . | . . . . . Part Schematics Acquired 2 | . . 2 . . Parts Built . | . . . . . Authchips . | . . . . . Time . | . . . . . Total Part Build Rating . | . . . . . Parts Repaired 5 | . 2 3 . . Time 154 | . 58 96 . . Parts Recycled . | . . . . . Recycled Matter . | . . . . . Retrieved Matter . | . . . . . Retrieved Components . | . . . . . Parts Scanalyzed 2 | . . 2 . . Part Schematics Acquired 2 | . . 2 . . Parts Damaged . | . . . . . Bothacking | -11 -10 -9 -9 -9 ------------ Run | Scr Mat Mat Min Exi Used RIF Installer . | . . . . . Robots Hacked . | . . . . . Non-combat . | . . . . . Combat . | . . . . . Robot Hacks Applied . | . . . . . Relay Couplers Released . | . . . . . Fabnet Peak Effective % . | . . . . . Robots Rewired . | . . . . . Allies Hacked . | . . . . . Hacks Repelled . | . . . . . Allies | -11 -10 -9 -9 -9 -------- Run | Scr Mat Mat Min Exi Total Allies . | . . . . . Largest Group . | . . . . . Highest-Rated Group . | . . . . . Highest-Rated Ally . | . . . . . Total Orders . | . . . . . Ally Attacks . | . . . . . Total Damage . | . . . . . Kills . | . . . . . Allies Corrupted . | . . . . . Allies Melted . | . . . . . Intel | -11 -10 -9 -9 -9 ------- Run | Scr Mat Mat Min Exi Robot Analysis Total 2 | . 2 . . . Derelict Logs Recovered . | . . . . . Drone Launches . | . . . . . Drone Recoveries . | . . . . . Exploration | -11 -10 -9 -9 -9 ------------- Run | Scr Mat Mat Min Exi Turns Passed 7273 | 3 1140 5020 506 604 Spaces Moved 2512 | 3 551 1613 158 187 Core 1 | . . . . 1 Treads 2483 | . 526 1613 158 186 Legs 28 | 3 25 . . . Wheels . | . . . . . Hover . | . . . . . Flight . | . . . . . Fastest Speed 120 | 120 120 160 320 320 Average Speed 257 | 120 158 277 320 325 Slowest Speed 1350 | 120 160 480 320 1350 Overloaded Moves . | . . . . . Propulsion Burnouts . | . . . . . Robots Hopped . | . . . . . Cave-ins Triggered . | . . . . . Exploration Rate (%) 52 | 2 83 98 32 46 Regions Visited 4 Branch Regions 2 Pre-discovered Areas 1 | . 1 . . . Known Exits Taken . | . . . . . Unknown Exits Taken 4 | 1 1 1 1 . Scrap Searched 1 | . . . 1 . Spaces Dug 17 | . 9 8 . . Terrain Destroyed 37 | . 15 22 . . Melee . | . . . . . Projectile . | . . . . . AOE 37 | . 15 22 . . Terrain Rammed . | . . . . . Walls Destroyed . | . . . . . Machines Disabled . | . . . . . Actions | -11 -10 -9 -9 -9 --------- Run | Scr Mat Mat Min Exi Total 3128 | 2 731 2041 158 196 Wait 307 | . 90 217 . . Move 2508 | 2 550 1612 157 187 Hop . | . . . . . Pick Up 54 | . 15 39 . . Fast Attach 14 | . 3 8 . 3 Attach 5 | . 1 4 . . Detach 3 | . . 2 . 1 Swap 31 | . 10 21 . . Drop 53 | . 8 40 . 5 Fire 140 | . 51 89 . . Melee . | . . . . . Ram . | . . . . . Kick . | . . . . . Crush 13 | . 3 9 1 . Escape Stasis . | . . . . . Rewire . | . . . . . Trap . | . . . . . Miscellaneous . | . . . . . Route ------- -11/Scrapyard -10/Materials (discovered 3 exits: *Mat x2 / [*Min]) -9/Materials (discovered 6 exits: *Mat x3 / [*Min x2] / [*Sto]) -9/Mines (discovered 2 exits: *Mat / *Exi) -9/Exiles (discovered 1 exit: [*Min]) History --------- Turn | Location | Event 1 | -11/Scrapyard | Discovered new exit (range 0) 4 | -11/Scrapyard | Entered Materials 261 | -10/Materials | Central database locked down 318 | -10/Materials | Discovered new exit (range 10) 324 | -10/Materials | Build established: Mutant 374 | -10/Materials | Discovered new exit (range 11) 647 | -10/Materials | Discovered new exit (range 12) 961 | -10/Materials | Repaired Imp. Treads 989 | -10/Materials | Repaired Lgt. Treads 1144 | -10/Materials | Entered another Materials area 1144 | -9/Materials | Evolved 2 slots: Utility x1, Weapon x1 1272 | -9/Materials | Discovered new exit (range 6) 1725 | -9/Materials | Discovered new exit (range 7) 2037 | -9/Materials | Discovered new exit (range 6) 2118 | -9/Materials | Repaired Imp. Treads 2152 | -9/Materials | Repaired Imp. Treads 2185 | -9/Materials | Repaired Hvy. Assault Rifle 2211 | -9/Materials | Build established: Gunner 3983 | -9/Materials | Discovered new exit (range 8) 4417 | -9/Materials | Discovered new exit (range 5) 5172 | -9/Materials | Identified exit to Materials 6164 | -9/Materials | Entered Mines 6265 | -9/Mines | Met a Derelict bent on vengeance 6324 | -9/Mines | Discovered exit to Materials (range 8) 6657 | -9/Mines | Deemed a non-threat by the Exiles lab entrance 6657 | -9/Mines | Discovered new exit (range 5) 6670 | -9/Mines | Entered Exiles 6715 | -9/Exiles | Discovered new exit (range 15) 6776 | -9/Exiles | Met 8R-AWN 6827 | -9/Exiles | Met EX-HEX 6958 | -9/Exiles | Met EX-BIN 6997 | -9/Exiles | Aligned with FarCom system 7000 | -9/Exiles | Given EX-Vault access code 7098 | -9/Exiles | Opened EX-Vault 7123 | -9/Exiles | Found Longsword +1 7195 | -9/Exiles | Warned to stay clear of 0b10 Research branches 7231 | -9/Exiles | Exiles lab attacked by MAIN.C 7243 | -9/Exiles | Attacked by the Exiles 7270 | -9/Exiles | Core integrity fell below 50% 7274 | -9/Exiles | Core integrity fell below 20% 7274 | -9/Exiles | Destroyed by DAS Turret with DAS Cannon Last Messages --------------- 07258_ Penetrated by HV Slug. 07258_ HV Slug penetrates Machine. 07258_ Penetrated by HV Slug. 07261_ HV Slug penetrates Machine. 07262_ Med. Armor Plating destroyed. 07264_ Penetrated by HV Slug. 07265_ Dropped Enh. Autogun. 07266_ EXILES: Lab perimeter alert, evacuate immediately. 07267_ Imp. Ion Engine destroyed. 07267_ Penetrated by HV Slug. 07267_ Critical hit (Destroy). 07267_ Imp. Treads destroyed. 07269_ Dropped Imp. Treads. 07269_ Penetrated by HV Slug. 07271_ System corrupted: Enh. Autogun rejected. 07271_ Imp. Treads destroyed. 07271_ as-72149 destroyed. 07272_ EX-BIN seems to be suffering from a case of analysis paralysis. 07274_ Imp. Targeting Computer destroyed. 07274_ Critical hit (Blast). Map ----- +----------------------------------------------------+ | ?????????????????????#" #?????????????? | | ?????????????????????#" ## #?????????????? | | ?????????????????????#""""""?# #?#########???? | | ??????????????????????#"###??# #?#"""""""#???? | | ?????????????????????????????# #?#"""""""#???? | | ?????????????????????????????# #?#"""""""#???? | | ????????????????????????????## ###"" """"#???? | | ????????????????????????????#" [ """"#???? | | ????????????????????????????#" """#???? | | ????????????????????????????#" """#???? | | ????????????????????????????#" """#???? | | ????????????????????????????#" """#???? | | ????????????????????????????#" """##??? | | ????????????????????????????## """""??? | | ?????????????????????????????# """##??? | | ?????????????????????????????#" "X" """"???? | | ?????????????????????????????#" """ #???? | | ?????????????????????????????#" """""""""#???? | | ????????????????????????????##" ###########???? | | ???????????????????????????##"" #?????????????? | | ??????????????????????######" #?????????????? | | ???????????????????"###""""" ##????????????? | | ????????????? ?? """""" ##????######## | | ???????????? "" """ [ #####"""""""" | | ?????????? " " %aa " """ "" | | ?????????? @[ "" " | | ?????????? " | | ?????????? c | | ??????????? | | ??????????? a | | ???????????? """""" % | | ???????????? ######""" | | ???????????? ""##????#####""" | | ????????????? """#??????????##""" | | ????????????? """#????????????#"""" | | ?????????????? "?????????????##"" | | ?????????????? ????????????????#"""" | | ???????????????? ??????????????""" | | ???????????????????????????????""" | | ????????????????????????????? | | ??????????????????????????? | | ???????????????????????????? " | | ????????????????????????????" "" """ | | ????????????????????????????"## ##""" " " ""#" | | ??????????????????????????????# ??#####""" """##"" | | ??????????????????????????????#???????###""""##### | | ????????????????????????????????????????#####????? | | ?????????????????????????????????????????????????? | | ?????????????????????????????????????????????????? | | ?????????????????????????????????????????????????? | +----------------------------------------------------+ Best States ------------- Heat Dissipation 28 Energy Generation 14 Energy Capacity 265 Matter Stores 300 Matter Capacity 300 Sight Range 16 Terrain Scan Density 10 Armor Coverage 225 Evasion (%) 55 Targeting Accuracy 11 Recoil Reduction 2 Item Schematics ----------------- Imp. Hover Unit | -9/Materials | Scanalyzed Enh. Autogun | -9/Materials | Scanalyzed Robot Schematics ------------------ None Fabricated ------------ Nothing Alien Tech Used ----------------- None Achievements -------------- None Challenges ------------ None Game ------ Seed CoreOmegaShield Manual? 0 Play Time 00:49:36 Cumulative 124.6 hours Start 2022.05.26 @ 21:49:41 End 2022.05.26 @ 23:42:48 Sessions 1 Manual Loads 0 Difficulty Rogue Special Mode None Game No. 112 Rogue 112 Adventurer 0 Explorer 0 Win Type - Total 0 Types 0/0/0/0/0/0/0/0/0 Lore% 30 Gallery% 42 Achievement% 34 Wizard Run 0 Options --------- ASCII 0 Keyboard 0 Movement Numpad Keybinds 0 Fullscreen 2 Font 18/Smallcaps Map View 76x50 Tactical HUD 1 Map Filters NONE Filters NONE Steam 1 RUN: c8440908-705c-49ab-afbb-bde419a2eb7d